[Event "*** SCC Grand Prix: Titled Tuesday Blitz"]
[Site "Chess.com"]
[Date "2020.07.07"]
[Round "2"]
[White "Ural_bogatyr"]
[Black "Sven_Tica"]
[Result "1/2-1/2"]
[WhiteElo "2346"]
[BlackElo "2639"]
[TimeControl "180+1"]
[EndTime "10:19:59 PDT"]
[Termination "Game drawn - insufficient material"]

1. e4 {[%clk 0:03:00.9]} 1... c5 {[%clk 0:02:59.9]} 2. Nf3 {[%clk 0:03:00.7]}
2... Nf6 {[%clk 0:03:00.5]} 3. e5 {[%clk 0:03:00.4]} 3... Nd5 {[%clk 0:03:01.1]}
4. d4 {[%clk 0:03:00.9]} 4... cxd4 {[%clk 0:03:00.6]} 5. Qxd4 {[%clk 0:03:01.8]}
5... e6 {[%clk 0:03:00.5]} 6. c3 {[%clk 0:03:02.1]} 6... Nc6 {[%clk 0:02:59]} 7.
Qe4 {[%clk 0:03:02.2]} 7... d6 {[%clk 0:02:58.1]} 8. Bb5 {[%clk 0:03:01.7]} 8...
Bd7 {[%clk 0:02:56]} 9. c4 {[%clk 0:03:01.7]} 9... Nc7 {[%clk 0:02:52.6]} 10.
Bg5 {[%clk 0:03:00.6]} 10... Qc8 {[%clk 0:02:41.3]} 11. exd6 {[%clk 0:03:00.1]}
11... Bxd6 {[%clk 0:02:42.2]} 12. O-O {[%clk 0:03:00]} 12... a6 {[%clk
0:02:33.1]} 13. Ba4 {[%clk 0:02:51.6]} 13... h6 {[%clk 0:02:32.6]} 14. Be3
{[%clk 0:02:15.5]} 14... O-O {[%clk 0:02:23.8]} 15. Rd1 {[%clk 0:02:04]} 15...
Ne8 {[%clk 0:02:19.1]} 16. Nc3 {[%clk 0:01:54.2]} 16... Nf6 {[%clk 0:02:17.2]}
17. Qh4 {[%clk 0:01:53.2]} 17... Be7 {[%clk 0:02:15.8]} 18. Qg3 {[%clk
0:01:36.1]} 18... Kh8 {[%clk 0:01:53]} 19. Bc2 {[%clk 0:01:28.5]} 19... Nb4
{[%clk 0:01:49.5]} 20. Bb3 {[%clk 0:01:07.9]} 20... a5 {[%clk 0:01:46.1]} 21. a3
{[%clk 0:00:43.7]} 21... a4 {[%clk 0:01:46.3]} 22. axb4 {[%clk 0:00:42.4]} 22...
axb3 {[%clk 0:01:46.5]} 23. Rxa8 {[%clk 0:00:43.3]} 23... Qxa8 {[%clk
0:01:46.4]} 24. Ne5 {[%clk 0:00:32.4]} 24... Rd8 {[%clk 0:01:39.8]} 25. Nxf7+
{[%clk 0:00:29.4]} 25... Kh7 {[%clk 0:01:37.7]} 26. Nxd8 {[%clk 0:00:25.4]}
26... Bxd8 {[%clk 0:01:38.6]} 27. Bd4 {[%clk 0:00:19]} 27... Be8 {[%clk
0:01:28.8]} 28. Be5 {[%clk 0:00:09.4]} 28... Bg6 {[%clk 0:01:19.6]} 29. h4
{[%clk 0:00:04.8]} 29... Bc2 {[%clk 0:01:18.3]} 30. Re1 {[%clk 0:00:04.5]} 30...
Be7 {[%clk 0:01:14.9]} 31. c5 {[%clk 0:00:03.8]} 31... Qd8 {[%clk 0:01:11.6]}
32. Bd6 {[%clk 0:00:03.7]} 32... Nh5 {[%clk 0:01:03.9]} 33. Qe5 {[%clk
0:00:01.9]} 33... Bf6 {[%clk 0:00:59]} 34. Qxe6 {[%clk 0:00:01.4]} 34... Bxc3
{[%clk 0:00:57.7]} 35. bxc3 {[%clk 0:00:02.3]} 35... b2 {[%clk 0:00:57.7]} 36.
Qa2 {[%clk 0:00:01.1]} 36... b1=Q {[%clk 0:00:55.6]} 37. Rxb1 {[%clk 0:00:01.3]}
37... Bxb1 {[%clk 0:00:56.3]} 38. Qxb1+ {[%clk 0:00:02.2]} 38... Kh8 {[%clk
0:00:53.3]} 39. Qe4 {[%clk 0:00:02.5]} 39... Nf6 {[%clk 0:00:51.6]} 40. Qe7
{[%clk 0:00:02.1]} 40... Qa8 {[%clk 0:00:49.8]} 41. Qf8+ {[%clk 0:00:01.7]}
41... Qxf8 {[%clk 0:00:49.5]} 42. Bxf8 {[%clk 0:00:02.6]} 42... Nd5 {[%clk
0:00:46.8]} 43. Bd6 {[%clk 0:00:01.4]} 43... Nxc3 {[%clk 0:00:46.3]} 44. Kf1
{[%clk 0:00:02.3]} 44... Kg8 {[%clk 0:00:45.2]} 45. Ke1 {[%clk 0:00:01.9]} 45...
Kf7 {[%clk 0:00:45.1]} 46. Kd2 {[%clk 0:00:02.1]} 46... Ne4+ {[%clk 0:00:44.8]}
47. Ke3 {[%clk 0:00:02.4]} 47... Nc3 {[%clk 0:00:45]} 48. Kd4 {[%clk 0:00:02.2]}
48... Nd1 {[%clk 0:00:43.3]} 49. f3 {[%clk 0:00:01.9]} 49... Ke6 {[%clk
0:00:43.7]} 50. Kc4 {[%clk 0:00:01.8]} 50... Ne3+ {[%clk 0:00:42.7]} 51. Kb5
{[%clk 0:00:02]} 51... Nxg2 {[%clk 0:00:42.9]} 52. Kb6 {[%clk 0:00:02.2]} 52...
Nxh4 {[%clk 0:00:43.5]} 53. Kxb7 {[%clk 0:00:02.4]} 53... Nxf3 {[%clk
0:00:44.3]} 54. c6 {[%clk 0:00:02.3]} 54... Nd4 {[%clk 0:00:40.6]} 55. c7 {[%clk
0:00:02.3]} 55... Nb5 {[%clk 0:00:41.3]} 56. c8=Q+ {[%clk 0:00:02.3]} 56... Kxd6
{[%clk 0:00:40.7]} 57. Qf8+ {[%clk 0:00:01.8]} 57... Kd5 {[%clk 0:00:39.9]} 58.
Qxg7 {[%clk 0:00:02.7]} 58... Nd6+ {[%clk 0:00:39.4]} 59. Kb8 {[%clk 0:00:02.4]}
59... Nf5 {[%clk 0:00:38.6]} 60. Qf7+ {[%clk 0:00:02.1]} 60... Ke5 {[%clk
0:00:39.2]} 61. b5 {[%clk 0:00:02.6]} 61... Nd6 {[%clk 0:00:39.2]} 62. Qe7+
{[%clk 0:00:02.1]} 62... Kd5 {[%clk 0:00:39.8]} 63. b6 {[%clk 0:00:02.3]} 63...
h5 {[%clk 0:00:40]} 64. Qd7 {[%clk 0:00:01.7]} 64... h4 {[%clk 0:00:40.9]} 65.
b7 {[%clk 0:00:01.6]} 65... Kc5 {[%clk 0:00:40.4]} 66. Qh3 {[%clk 0:00:01.4]}
66... Nxb7 {[%clk 0:00:39]} 67. Qh1 {[%clk 0:00:01.4]} 67... Nd6 {[%clk
0:00:39]} 68. Qxh4 {[%clk 0:00:01.6]} 68... Nc4 {[%clk 0:00:39.3]} 69. Qh1
{[%clk 0:00:01.7]} 69... Nb6 {[%clk 0:00:39.7]} 70. Qg1+ {[%clk 0:00:02.6]}
70... Kb5 {[%clk 0:00:39.9]} 71. Kb7 {[%clk 0:00:03.5]} 71... Nd5 {[%clk
0:00:40.4]} 72. Qb1+ {[%clk 0:00:03.5]} 72... Kc5 {[%clk 0:00:40.9]} 73. Qc1+
{[%clk 0:00:02.5]} 73... Kd4 {[%clk 0:00:39.7]} 74. Kc8 {[%clk 0:00:03.4]} 74...
Ne3 {[%clk 0:00:39.1]} 75. Kd7 {[%clk 0:00:03.6]} 75... Nc4 {[%clk 0:00:39.1]}
76. Qd1+ {[%clk 0:00:03.1]} 76... Ke4 {[%clk 0:00:39.3]} 77. Kc6 {[%clk
0:00:02.8]} 77... Ne5+ {[%clk 0:00:39.2]} 78. Kc7 {[%clk 0:00:01.1]} 78... Nd3
{[%clk 0:00:39.1]} 79. Qe1+ {[%clk 0:00:02]} 79... Nxe1 {[%clk 0:00:38.9]}
1/2-1/2

[Event "*** SCC Grand Prix: Titled Tuesday Blitz"]
[Site "Chess.com"]
[Date "2020.07.07"]
[Round "2"]
[White "GothamChess"]
[Black "EvgenyT"]
[Result "1-0"]
[WhiteElo "2580"]
[BlackElo "2872"]
[TimeControl "180+1"]
[EndTime "10:20:01 PDT"]
[Termination "GothamChess won on time"]

1. e4 {[%clk 0:03:00.9]} 1... e5 {[%clk 0:02:59]} 2. Nc3 {[%clk 0:03:00.9]} 2...
Nc6 {[%clk 0:02:57.7]} 3. Bc4 {[%clk 0:03:00.9]} 3... Nf6 {[%clk 0:02:56.9]} 4.
d3 {[%clk 0:03:01.3]} 4... Na5 {[%clk 0:02:53.7]} 5. Bb3 {[%clk 0:03:01.5]} 5...
Be7 {[%clk 0:02:46.7]} 6. Nf3 {[%clk 0:02:58.4]} 6... Nxb3 {[%clk 0:02:40.9]} 7.
axb3 {[%clk 0:02:58.4]} 7... d6 {[%clk 0:02:41.5]} 8. h3 {[%clk 0:02:58.5]} 8...
O-O {[%clk 0:02:36.4]} 9. O-O {[%clk 0:02:58.3]} 9... a6 {[%clk 0:02:32.9]} 10.
d4 {[%clk 0:02:52.3]} 10... Nd7 {[%clk 0:02:23.4]} 11. Nd5 {[%clk 0:02:44.6]}
11... Re8 {[%clk 0:02:09.3]} 12. dxe5 {[%clk 0:02:41.5]} 12... Nxe5 {[%clk
0:02:06.4]} 13. Nxe5 {[%clk 0:02:23.7]} 13... dxe5 {[%clk 0:02:05.8]} 14. Qf3
{[%clk 0:02:24.4]} 14... Bf8 {[%clk 0:01:39.5]} 15. Rd1 {[%clk 0:02:17]} 15...
c6 {[%clk 0:01:36.5]} 16. Nc3 {[%clk 0:02:03.9]} 16... Qc7 {[%clk 0:01:30.8]}
17. Be3 {[%clk 0:02:02.7]} 17... b5 {[%clk 0:01:16.7]} 18. Rd3 {[%clk
0:01:38.2]} 18... Be6 {[%clk 0:01:15.1]} 19. Rad1 {[%clk 0:01:38.3]} 19... Rad8
{[%clk 0:01:11.5]} 20. Qg3 {[%clk 0:01:34.1]} 20... f6 {[%clk 0:01:06.1]} 21.
Ne2 {[%clk 0:01:29.9]} 21... Rxd3 {[%clk 0:01:04.4]} 22. Rxd3 {[%clk 0:01:30.8]}
22... Rd8 {[%clk 0:01:03.5]} 23. Nd4 {[%clk 0:01:26.7]} 23... Bf7 {[%clk
0:00:53.2]} 24. Bd2 {[%clk 0:01:00.7]} 24... Kh8 {[%clk 0:00:32]} 25. Nf5 {[%clk
0:00:53.9]} 25... Rxd3 {[%clk 0:00:31.1]} 26. Qxd3 {[%clk 0:00:54.8]} 26... Be6
{[%clk 0:00:29.7]} 27. Ne3 {[%clk 0:00:47]} 27... Kg8 {[%clk 0:00:28.2]} 28. b4
{[%clk 0:00:40.3]} 28... Qd6 {[%clk 0:00:25.2]} 29. Qc3 {[%clk 0:00:35]} 29...
Qd4 {[%clk 0:00:20.3]} 30. f3 {[%clk 0:00:30.7]} 30... c5 {[%clk 0:00:19]} 31.
bxc5 {[%clk 0:00:23.8]} 31... Bxc5 {[%clk 0:00:18.5]} 32. Kf2 {[%clk 0:00:18.9]}
32... Qxc3 {[%clk 0:00:17.5]} 33. Bxc3 {[%clk 0:00:18.9]} 33... b4 {[%clk
0:00:17.8]} 34. Bd2 {[%clk 0:00:18.4]} 34... a5 {[%clk 0:00:17.8]} 35. Ke2
{[%clk 0:00:18.7]} 35... Kf7 {[%clk 0:00:17.3]} 36. b3 {[%clk 0:00:18]} 36...
Ke7 {[%clk 0:00:16.4]} 37. Nd1 {[%clk 0:00:17.1]} 37... Kd6 {[%clk 0:00:15.9]}
38. Be3 {[%clk 0:00:16.5]} 38... Kc6 {[%clk 0:00:15.4]} 39. Nb2 {[%clk
0:00:16.6]} 39... Bxe3 {[%clk 0:00:12.8]} 40. Kxe3 {[%clk 0:00:16.6]} 40... Kc5
{[%clk 0:00:13.3]} 41. Nd3+ {[%clk 0:00:16.1]} 41... Kb5 {[%clk 0:00:13.4]} 42.
Nb2 {[%clk 0:00:17]} 42... Bd7 {[%clk 0:00:13]} 43. h4 {[%clk 0:00:16]} 43...
Kc5 {[%clk 0:00:12.3]} 44. Nd3+ {[%clk 0:00:16.1]} 44... Kd6 {[%clk 0:00:12.3]}
45. Nb2 {[%clk 0:00:16.5]} 45... Bb5 {[%clk 0:00:12.1]} 46. g3 {[%clk
0:00:16.4]} 46... h5 {[%clk 0:00:11.1]} 47. f4 {[%clk 0:00:15.6]} 47... Ke6
{[%clk 0:00:05.3]} 48. Kf3 {[%clk 0:00:11.7]} 48... g6 {[%clk 0:00:04.6]} 49.
Ke3 {[%clk 0:00:11.2]} 49... Kd6 {[%clk 0:00:04.8]} 50. Kf3 {[%clk 0:00:10.5]}
50... Kc5 {[%clk 0:00:04.8]} 51. Ke3 {[%clk 0:00:11.1]} 51... Kc6 {[%clk
0:00:05]} 52. Nd3 {[%clk 0:00:03.6]} 52... Kd6 {[%clk 0:00:04.6]} 53. fxe5+
{[%clk 0:00:02.7]} 53... fxe5 {[%clk 0:00:04.5]} 54. Nf2 {[%clk 0:00:02.2]}
54... Kc5 {[%clk 0:00:03.5]} 55. Nh3 {[%clk 0:00:02.5]} 55... Bd7 {[%clk
0:00:03.2]} 56. Ng5 {[%clk 0:00:02.4]} 56... Be8 {[%clk 0:00:02.5]} 57. Ne6+
{[%clk 0:00:02.3]} 57... Kd6 {[%clk 0:00:02.6]} 58. Ng5 {[%clk 0:00:02.8]} 58...
Bd7 {[%clk 0:00:02.4]} 59. Nf7+ {[%clk 0:00:02.9]} 59... Ke6 {[%clk 0:00:02.8]}
60. Nd8+ {[%clk 0:00:03.3]} 60... Ke7 {[%clk 0:00:03]} 61. Nb7 {[%clk
0:00:04.2]} 61... a4 {[%clk 0:00:03.2]} 62. bxa4 {[%clk 0:00:04.1]} 62... Bxa4
{[%clk 0:00:03.3]} 63. Kd2 {[%clk 0:00:03.7]} 63... Bc6 {[%clk 0:00:03.4]} 64.
Nc5 {[%clk 0:00:02.6]} 64... Kd6 {[%clk 0:00:03.7]} 65. Nd3 {[%clk 0:00:03.3]}
65... Bxe4 {[%clk 0:00:03.8]} 66. Nxb4 {[%clk 0:00:03.9]} 66... Kc5 {[%clk
0:00:04]} 67. c3 {[%clk 0:00:02.8]} 67... Bb7 {[%clk 0:00:03]} 68. Ke3 {[%clk
0:00:02.6]} 68... Kc4 {[%clk 0:00:03]} 69. Nd3 {[%clk 0:00:03]} 69... Kd5 {[%clk
0:00:01.2]} 70. c4+ {[%clk 0:00:02.4]} 1-0

[Event "*** SCC Grand Prix: Titled Tuesday Blitz"]
[Site "Chess.com"]
[Date "2020.07.07"]
[Round "2"]
[White "GEKKESPONS"]
[Black "Onischuk_V"]
[Result "0-1"]
[WhiteElo "2558"]
[BlackElo "2879"]
[TimeControl "180+1"]
[EndTime "10:20:02 PDT"]
[Termination "Onischuk_V won on time"]

1. d4 {[%clk 0:03:00.9]} 1... d6 {[%clk 0:02:59.3]} 2. Nf3 {[%clk 0:02:58.7]}
2... g6 {[%clk 0:02:58.8]} 3. g3 {[%clk 0:02:58.6]} 3... Bg7 {[%clk 0:02:59.3]}
4. Bg2 {[%clk 0:02:59.2]} 4... Nf6 {[%clk 0:02:59.9]} 5. O-O {[%clk 0:02:59.7]}
5... O-O {[%clk 0:03:00.5]} 6. b3 {[%clk 0:02:56.4]} 6... e5 {[%clk 0:02:56.9]}
7. dxe5 {[%clk 0:02:52.8]} 7... dxe5 {[%clk 0:02:56.9]} 8. Ba3 {[%clk
0:02:50.3]} 8... Qxd1 {[%clk 0:02:31.7]} 9. Rxd1 {[%clk 0:02:46.7]} 9... Re8
{[%clk 0:02:32.1]} 10. c4 {[%clk 0:02:20.9]} 10... e4 {[%clk 0:02:23.3]} 11. Nd4
{[%clk 0:02:17.5]} 11... c6 {[%clk 0:02:19.6]} 12. Nc3 {[%clk 0:02:12.4]} 12...
Na6 {[%clk 0:02:17.8]} 13. e3 {[%clk 0:01:44.4]} 13... Bg4 {[%clk 0:02:15.3]}
14. Rd2 {[%clk 0:01:44.2]} 14... Rad8 {[%clk 0:02:11.9]} 15. h3 {[%clk 0:01:39]}
15... Bc8 {[%clk 0:02:10]} 16. Rad1 {[%clk 0:01:36.5]} 16... h5 {[%clk
0:02:08.6]} 17. Na4 {[%clk 0:01:06]} 17... Rd7 {[%clk 0:01:49.4]} 18. Ne2 {[%clk
0:00:51.4]} 18... Rxd2 {[%clk 0:01:45.2]} 19. Rxd2 {[%clk 0:00:52.3]} 19... Nd7
{[%clk 0:01:31.7]} 20. c5 {[%clk 0:00:46.6]} 20... f5 {[%clk 0:01:29]} 21. Nf4
{[%clk 0:00:43.3]} 21... Ne5 {[%clk 0:01:27.4]} 22. Bb2 {[%clk 0:00:40.2]} 22...
Kf7 {[%clk 0:01:26.1]} 23. h4 {[%clk 0:00:39.5]} 23... Nb4 {[%clk 0:01:17.7]}
24. a3 {[%clk 0:00:26.1]} 24... Nbd3 {[%clk 0:01:15.8]} 25. Nxd3 {[%clk
0:00:23.5]} 25... Nxd3 {[%clk 0:01:15.1]} 26. Bxg7 {[%clk 0:00:24.4]} 26... Kxg7
{[%clk 0:01:14.9]} 27. Bf1 {[%clk 0:00:24.7]} 27... Ne5 {[%clk 0:01:11.1]} 28.
Be2 {[%clk 0:00:24.1]} 28... Be6 {[%clk 0:01:09.9]} 29. b4 {[%clk 0:00:20.8]}
29... Bc4 {[%clk 0:01:06.1]} 30. Kf1 {[%clk 0:00:18.5]} 30... Bd3 {[%clk
0:01:01.7]} 31. Nb2 {[%clk 0:00:17.3]} 31... Rd8 {[%clk 0:00:58.5]} 32. Bxd3
{[%clk 0:00:17.4]} 32... exd3 {[%clk 0:00:40.6]} 33. Kg2 {[%clk 0:00:17.2]}
33... Kf6 {[%clk 0:00:37.6]} 34. f4 {[%clk 0:00:17.3]} 34... Ng4 {[%clk
0:00:37.6]} 35. Kf3 {[%clk 0:00:17.5]} 35... Ke6 {[%clk 0:00:36.7]} 36. Rxd3
{[%clk 0:00:14.9]} 36... Rxd3 {[%clk 0:00:36.1]} 37. Nxd3 {[%clk 0:00:15.8]}
37... Kd5 {[%clk 0:00:36.4]} 38. Nb2 {[%clk 0:00:14.7]} 38... Nf6 {[%clk
0:00:34.5]} 39. a4 {[%clk 0:00:11.4]} 39... a5 {[%clk 0:00:33.2]} 40. bxa5
{[%clk 0:00:11.6]} 40... Kxc5 {[%clk 0:00:32.9]} 41. Nd3+ {[%clk 0:00:12.3]}
41... Kc4 {[%clk 0:00:27.1]} 42. Ne5+ {[%clk 0:00:13.2]} 42... Kb3 {[%clk
0:00:27.3]} 43. a6 {[%clk 0:00:13.2]} 43... bxa6 {[%clk 0:00:26.2]} 44. a5
{[%clk 0:00:12.6]} 44... c5 {[%clk 0:00:25.7]} 45. Ke2 {[%clk 0:00:09.2]} 45...
c4 {[%clk 0:00:23.3]} 46. Kd2 {[%clk 0:00:09.6]} 46... c3+ {[%clk 0:00:21.6]}
47. Kc1 {[%clk 0:00:09.9]} 47... Ne4 {[%clk 0:00:20.9]} 48. Nxg6 {[%clk
0:00:08.3]} 48... Nf2 {[%clk 0:00:20.9]} 49. Ne5 {[%clk 0:00:08.4]} 49... Kb4
{[%clk 0:00:18.2]} 50. Kc2 {[%clk 0:00:08.4]} 50... Ne4 {[%clk 0:00:17.1]} 51.
Nd3+ {[%clk 0:00:08.1]} 51... Kxa5 {[%clk 0:00:16.7]} 52. Ne5 {[%clk 0:00:07.1]}
52... Kb4 {[%clk 0:00:16.6]} 53. Nf3 {[%clk 0:00:06]} 53... Kc4 {[%clk
0:00:13.9]} 54. Nd4 {[%clk 0:00:06.3]} 54... Nxg3 {[%clk 0:00:14.1]} 55. Kc1
{[%clk 0:00:02.8]} 55... a5 {[%clk 0:00:13.3]} 56. Nc2 {[%clk 0:00:02.3]} 56...
a4 {[%clk 0:00:12.8]} 57. Na3+ {[%clk 0:00:02.6]} 57... Kb4 {[%clk 0:00:12]} 58.
Nc2+ {[%clk 0:00:02.9]} 58... Kc4 {[%clk 0:00:12.4]} 59. Na3+ {[%clk 0:00:03]}
59... Kd3 {[%clk 0:00:12.7]} 60. Nc2 {[%clk 0:00:03.9]} 60... Nf1 {[%clk
0:00:11.7]} 61. Nd4 {[%clk 0:00:04.1]} 61... Nxe3 {[%clk 0:00:11.3]} 62. Nc6
{[%clk 0:00:03]} 62... a3 {[%clk 0:00:10.8]} 63. Nb4+ {[%clk 0:00:03]} 63... Ke4
{[%clk 0:00:10.3]} 64. Na2 {[%clk 0:00:02.7]} 64... Nd5 {[%clk 0:00:10.1]} 65.
Kc2 {[%clk 0:00:03]} 65... Kxf4 {[%clk 0:00:10.7]} 66. Kd3 {[%clk 0:00:03.5]}
66... Kg3 {[%clk 0:00:09.4]} 67. Kd4 {[%clk 0:00:03.8]} 67... f4 {[%clk
0:00:07.7]} 68. Kxd5 {[%clk 0:00:03.4]} 68... f3 {[%clk 0:00:08.3]} 69. Nxc3
{[%clk 0:00:03.4]} 69... f2 {[%clk 0:00:08.2]} 70. Ne4+ {[%clk 0:00:03.6]} 70...
Kg2 {[%clk 0:00:08.4]} 71. Nxf2 {[%clk 0:00:01.3]} 71... Kxf2 {[%clk 0:00:08.4]}
0-1

[Event "*** SCC Grand Prix: Titled Tuesday Blitz"]
[Site "Chess.com"]
[Date "2020.07.07"]
[Round "2"]
[White "OhanyanEminChess"]
[Black "Gareth-Bale11"]
[Result "1/2-1/2"]
[WhiteElo "2521"]
[BlackElo "2753"]
[TimeControl "180+1"]
[EndTime "10:20:04 PDT"]
[Termination "Game drawn by repetition"]

1. e4 {[%clk 0:03:00.9]} 1... e5 {[%clk 0:02:57.7]} 2. Nc3 {[%clk 0:02:59.8]}
2... Nf6 {[%clk 0:02:57.6]} 3. Bc4 {[%clk 0:02:55.8]} 3... Bb4 {[%clk
0:02:54.1]} 4. Nge2 {[%clk 0:02:54.9]} 4... c6 {[%clk 0:02:51.1]} 5. O-O {[%clk
0:02:43.5]} 5... O-O {[%clk 0:02:49.4]} 6. d3 {[%clk 0:02:39.8]} 6... d5 {[%clk
0:02:47.7]} 7. Bb3 {[%clk 0:02:38.8]} 7... h6 {[%clk 0:02:45.9]} 8. a3 {[%clk
0:02:32.2]} 8... Ba5 {[%clk 0:02:43]} 9. Ba2 {[%clk 0:02:26.3]} 9... Be6 {[%clk
0:02:30.2]} 10. Bd2 {[%clk 0:02:01.5]} 10... Nbd7 {[%clk 0:02:25.5]} 11. Ng3
{[%clk 0:01:55.3]} 11... Bb6 {[%clk 0:02:16.8]} 12. Kh1 {[%clk 0:01:50.9]} 12...
Ng4 {[%clk 0:02:02.7]} 13. Qe2 {[%clk 0:01:40.1]} 13... Qh4 {[%clk 0:01:31.7]}
14. h3 {[%clk 0:01:25.3]} 14... Ngf6 {[%clk 0:01:28.7]} 15. Kh2 {[%clk
0:00:56.2]} 15... dxe4 {[%clk 0:01:08.8]} 16. Ncxe4 {[%clk 0:00:47.9]} 16...
Bxa2 {[%clk 0:01:04.7]} 17. Rxa2 {[%clk 0:00:46.1]} 17... Nxe4 {[%clk
0:01:03.6]} 18. dxe4 {[%clk 0:00:41.3]} 18... Nf6 {[%clk 0:01:00]} 19. f3 {[%clk
0:00:33.2]} 19... Nh7 {[%clk 0:00:49.7]} 20. Nf5 {[%clk 0:00:26.2]} 20... Qf6
{[%clk 0:00:46.5]} 21. Raa1 {[%clk 0:00:23.4]} 21... h5 {[%clk 0:00:44.4]} 22.
Rad1 {[%clk 0:00:19.8]} 22... Ng5 {[%clk 0:00:43.1]} 23. Bxg5 {[%clk 0:00:16.1]}
23... Qxf5 {[%clk 0:00:42.2]} 24. Qd2 {[%clk 0:00:17]} 24... Qg6 {[%clk
0:00:35.9]} 25. Be3 {[%clk 0:00:15.6]} 25... Rad8 {[%clk 0:00:33]} 26. Qf2
{[%clk 0:00:14.8]} 26... Bxe3 {[%clk 0:00:30.6]} 27. Qxe3 {[%clk 0:00:14.5]}
27... b6 {[%clk 0:00:31.5]} 28. Rd3 {[%clk 0:00:11.5]} 28... Rxd3 {[%clk
0:00:28.2]} 29. Qxd3 {[%clk 0:00:12.4]} 29... h4 {[%clk 0:00:26.3]} 30. Rd1
{[%clk 0:00:09.5]} 30... Re8 {[%clk 0:00:25.4]} 31. Qe3 {[%clk 0:00:07.1]} 31...
Qg3+ {[%clk 0:00:24.2]} 32. Kh1 {[%clk 0:00:07.1]} 32... Kh7 {[%clk 0:00:24.2]}
33. Qe1 {[%clk 0:00:05.2]} 33... Qf4 {[%clk 0:00:23.4]} 34. Qd2 {[%clk
0:00:03.7]} 34... Qg3 {[%clk 0:00:23.6]} 35. Qd7 {[%clk 0:00:03.2]} 35... Rf8
{[%clk 0:00:15.2]} 36. Qxc6 {[%clk 0:00:02]} 36... Qf2 {[%clk 0:00:14.1]} 37.
Qd7 {[%clk 0:00:01.9]} 37... Qxc2 {[%clk 0:00:13.4]} 38. Rg1 {[%clk 0:00:01.7]}
38... Qxb2 {[%clk 0:00:13.5]} 39. Qf5+ {[%clk 0:00:01.9]} 39... g6 {[%clk
0:00:13.2]} 40. Qf6 {[%clk 0:00:02.3]} 40... Qxa3 {[%clk 0:00:12.5]} 41. Qxe5
{[%clk 0:00:02.1]} 41... Qc5 {[%clk 0:00:12.2]} 42. Qf6 {[%clk 0:00:02.3]} 42...
a5 {[%clk 0:00:09]} 43. Qxh4+ {[%clk 0:00:02.2]} 43... Kg7 {[%clk 0:00:09.5]}
44. Qf4 {[%clk 0:00:02.5]} 44... a4 {[%clk 0:00:09.3]} 45. e5 {[%clk 0:00:03]}
45... Qc6 {[%clk 0:00:04.2]} 46. Qd4 {[%clk 0:00:02.2]} 46... Kg8 {[%clk
0:00:02.7]} 47. Re1 {[%clk 0:00:02.5]} 47... Qe6 {[%clk 0:00:02.4]} 48. Qxa4
{[%clk 0:00:02]} 48... Rc8 {[%clk 0:00:02.6]} 49. Qd4 {[%clk 0:00:02]} 49... b5
{[%clk 0:00:02.5]} 50. Qd6 {[%clk 0:00:02.4]} 50... Qc4 {[%clk 0:00:01.6]} 51.
e6 {[%clk 0:00:01.9]} 51... fxe6 {[%clk 0:00:01.9]} 52. Qxe6+ {[%clk 0:00:02.8]}
52... Qxe6 {[%clk 0:00:02]} 53. Rxe6 {[%clk 0:00:03.7]} 53... Rb8 {[%clk
0:00:02.6]} 54. Rxg6+ {[%clk 0:00:03.7]} 54... Kf7 {[%clk 0:00:03.1]} 55. Rc6
{[%clk 0:00:03.8]} 55... b4 {[%clk 0:00:04]} 56. Rc2 {[%clk 0:00:04.4]} 56... b3
{[%clk 0:00:04.9]} 57. Rb2 {[%clk 0:00:05]} 57... Ke6 {[%clk 0:00:05.6]} 58. Kh2
{[%clk 0:00:05.5]} 58... Ke5 {[%clk 0:00:06]} 59. Kg3 {[%clk 0:00:05.9]} 59...
Kd4 {[%clk 0:00:06.6]} 60. Kf4 {[%clk 0:00:04.1]} 60... Kc3 {[%clk 0:00:07]} 61.
Rb1 {[%clk 0:00:04.5]} 61... Kc2 {[%clk 0:00:06.6]} 62. Rf1 {[%clk 0:00:04.3]}
62... b2 {[%clk 0:00:07.5]} 63. g4 {[%clk 0:00:04.6]} 63... Rd8 {[%clk
0:00:07.7]} 64. Rf2+ {[%clk 0:00:02]} 64... Rd2 {[%clk 0:00:07.5]} 65. Rf1
{[%clk 0:00:02.7]} 65... Rd1 {[%clk 0:00:07.1]} 66. Rf2+ {[%clk 0:00:03.2]}
66... Rd2 {[%clk 0:00:07.6]} 67. Rf1 {[%clk 0:00:03.7]} 67... Rd1 {[%clk
0:00:07.8]} 68. Rf2+ {[%clk 0:00:02.4]} 68... Rd2 {[%clk 0:00:08]} 1/2-1/2